[Event "Austrian Bundesliga 2023-24"]
[Site "Austria"]
[Date "2024.03.20"]
[Round "7.1"]
[White "Baldauf, Marco"]
[Black "Ragger, Markus"]
[Result "1/2-1/2"]
[ECO "D84"]
[WhiteElo "2481"]
[BlackElo "2605"]
[Annotator "TA"]
[PlyCount "63"]
[EventDate "2023.10.21"]
[EventType "team-tourn"]
[EventCountry "AUT"]
[SourceTitle "playchess.com"]
[Source "ChessBase"]
[SourceQuality "1"]
[TimeControl "40/5400+30:1800+30"]

{[%evp 17,63,46,58,68,46,54,61,63,80,11,14,14,15,2,2,14,35,22,24,29,34,20,32,31,43,44,36,6,7,6,5,2,37,8,14,7,37,39,30,22,41,5,7,2,7,4,8,0]} 1. d4 {[%emt 0:00:07]} Nf6 {[%emt 0:00:04]} 2. c4 {[%emt 0:00:05]} g6 {[%emt 0:00:03]} 3. Nc3 {[%emt 0:00:30]} d5 {[%emt 0:00:02]} 4. Bf4 {[%emt 0:00:05]} Bg7 {[%emt 0:00:19]} 5. e3 {[%emt 0:00:04]} O-O {[%emt 0:00:20]} 6. cxd5 {[%emt 0:01:50]} Nxd5 {[%emt 0:00:07]} 7. Nxd5 {[%emt 0:00:04]} Qxd5 {[%emt 0:00:05]} 8. Bxc7 {[%emt 0:00:04]} Nc6 {[%emt 0:00:22]} 9. Ne2 {[%emt 0:00:55]} Bg4 {[%emt 0:00:17]} 10. f3 $1 {[%emt 0:22:49]} Bf5 {[%emt 0:01:37]} 11. Nc3 {[%emt 0:16:04]} Qe6 {[%emt 0:03:05][%csl LRd4,LRe3]} 12. Kf2 {[%emt 0:00:03] White is slightly better.} Qc8 {[%emt 0:00:25]} 13. Bf4 {[%emt 0:09:02]} (13. Bg3 $16) 13... e5 $11 {[%emt 0:00:29]} 14. dxe5 {[%emt 0:00:33]} Rd8 {[%emt 0:00:50]} 15. Qc1 {[%emt 0:01:43]} Nxe5 {[%emt 0:04:39]} 16. Be2 {[%emt 0:02:38]} Qc5 {[%emt 0:13:05]} 17. Rd1 {[%emt 0:02:09]} Nd3+ {[%emt 0:31:11]} 18. Bxd3 {[%emt 0:00:05]} Bxd3 {[%emt 0:00:03]} 19. Rd2 {[%emt 0:07:59]} g5 {[%emt 0:09:22]} 20. Bg3 {[%emt 0:00:55]} Rac8 {[%emt 0:04:40]} 21. Qe1 {[%emt 0:02:45]} Qa5 {[%emt 0:11:31]} 22. Rad1 {[%emt 0:11:47]} Rxc3 {[%emt 0:00:38]} ({Much weaker is} 22... Bxc3 $6 23. bxc3 Bf5 24. Rxd8+ Rxd8 25. Kg1 $16 (25. Rxd8+ Qxd8 26. Kg1 Be6 $14)) 23. bxc3 {[%emt 0:00:03]} Bxc3 {[%emt 0:00:06] [#] A strong pair of Bishops.} 24. Kg1 $1 {[%emt 0:00:34][%cal Oh2h3]} Rd7 {[%emt 0:02:09] [#]} (24... Rd5 25. h4) 25. Qf2 $1 {[%emt 0:04:00]} Bxd2 {[%emt 0:08:30]} 26. Rxd2 {[%emt 0:00:05]} Bf5 {[%emt 0:03:15]} 27. Rxd7 {[%emt 0:00:39]} Bxd7 {[%emt 0:00:01]} 28. Qb2 {[%emt 0:01:21]} Qb5 {[%emt 0:00:47]} 29. Be5 {[%emt 0:00:53]} Qxb2 {[%emt 0:00:52] The position is equal.} 30. Bxb2 {[%emt 0:00:04]} f5 {[%emt 0:00:10]} 31. Kf2 {[%emt 0:02:08]} Bc6 {[%emt 0:01:10]} 32. Ke2 {[%emt 0:02:40] Weighted Error Value: White=0.12 (very precise) /Black=0.08 (flawless) .  Mistake:       	White=1     	---        Inaccurate:     	White=3     	Black=2      OK:         	White=9     	Black=9      Best:        	White=1     	Black=1} 1/2-1/2

[Event "Austrian Bundesliga 2023-24"]
[Site "Austria"]
[Date "2024.03.20"]
[Round "7.2"]
[White "Handler, Lukas"]
[Black "Prusikin, Michael"]
[Result "1/2-1/2"]
[ECO "D37"]
[WhiteElo "2436"]
[BlackElo "2508"]
[Annotator "TA"]
[PlyCount "35"]
[EventDate "2023.10.21"]
[EventType "team-tourn"]
[EventCountry "AUT"]
[SourceTitle "playchess.com"]
[Source "ChessBase"]
[SourceQuality "1"]
[TimeControl "40/5400+30:1800+30"]

{[%evp 9,35,13,17,15,18,14,13,15,16,18,22,12,25,10,41,34,37,28,22,23,37,0,27,0,48,0,46,0]} 1. d4 {[%emt 0:00:05]} d5 {[%emt 0:00:23]} 2. c4 {[%emt 0:00:05]} e6 {[%emt 0:00:07]} 3. Nf3 {[%emt 0:00:06]} Nf6 {[%emt 0:00:23]} 4. Nc3 {[%emt 0:00:07]} h6 {[%emt 0:01:57]} 5. cxd5 {[%emt 0:03:31]} exd5 {[%emt 0:00:31]} 6. Bf4 {[%emt 0:00:22]} Bd6 {[%emt 0:01:05]} 7. Bxd6 {[%emt 0:03:19]} Qxd6 {[%emt 0:00:22]} 8. e3 {[%emt 0:00:22] The position is equal.} O-O {[%emt 0:07:22]} 9. Qc2 {[%emt 0:01:47]} Nbd7 {[%emt 0:04:43]} 10. Bd3 {[%emt 0:01:00]} a6 {[%emt 0:02:03]} 11. O-O {[%emt 0:01:43]} Re8 {[%emt 0:04:26]} 12. Rfc1 {[%emt 0:05:41]} c6 {[%emt 0:00:50]} 13. Rab1 {[%emt 0:01:45]} Qe7 {[%emt 0:04:16]} 14. Nd2 {[%emt 0:10:04]} Ng4 {[%emt 0:04:31]} 15. Nf3 {[%emt 0:05:47]} Ngf6 {[%emt 0:00:24]} 16. Nd2 {[%emt 0:02:07]} Ng4 {[%emt 0:03:03]} 17. Nf3 {[%emt 0:02:58]} Ngf6 {[%emt 0:00:40]} 18. Nd2 {Weighted Error Value: White=0.13 (very precise) /Black=0.05 (flawless) .  Mistake:       	White=1     	---        Inaccurate:     	---       	Black=1      OK:         	White=4     	Black=6} (18. b4 $14) 1/2-1/2

[Event "Austrian Bundesliga 2023-24"]
[Site "Austria"]
[Date "2024.03.20"]
[Round "7.3"]
[White "Berchtenbreiter, Maximilian"]
[Black "Bauer, Sebastian"]
[Result "1/2-1/2"]
[ECO "C80"]
[WhiteElo "2486"]
[BlackElo "2337"]
[Annotator "TA"]
[PlyCount "62"]
[EventDate "2023.10.21"]
[EventType "team-tourn"]
[EventCountry "AUT"]
[SourceTitle "playchess.com"]
[Source "ChessBase"]
[SourceQuality "1"]
[TimeControl "40/5400+30:1800+30"]

{[%evp 25,62,24,19,18,18,14,20,8,47,9,17,11,8,0,0,0,0,0,-6,-8,0,-15,-16,-17,-18,-16,-20,-25,-14,-11,-18,-20,-16,-29,-8,-7,-6,-8,-8]} 1. e4 {[%emt 0:00:15]} e5 {[%emt 0:00:09]} 2. Nf3 {[%emt 0:00:07]} Nc6 {[%emt 0:00:05]} 3. Bb5 {[%emt 0:00:36]} a6 {[%emt 0:00:13]} 4. Ba4 {[%emt 0:00:05]} Nf6 {[%emt 0:00:08]} 5. O-O {[%emt 0:00:21]} Nxe4 {[%emt 0:00:14]} 6. d4 {[%emt 0:00:27]} b5 {[%emt 0:00:08]} 7. Bb3 {[%emt 0:00:10]} d5 {[%emt 0:00:09]} 8. dxe5 {[%emt 0:00:10]} Be6 {[%emt 0:00:13]} 9. Nbd2 {[%emt 0:05:39]} Nc5 {[%emt 0:00:43]} 10. c3 {[%emt 0:00:04]} Be7 {[%emt 0:00:25]} 11. Bc2 {[%emt 0:00:35]} d4 {[%emt 0:00:24]} 12. cxd4 {[%emt 0:01:57]} Nxd4 {[%emt 0:00:25]} 13. Nxd4 {[%emt 0:00:25]} Qxd4 {[%emt 0:00:09]} 14. Nf3 {[%emt 0:05:27]} Qxd1 {[%emt 0:00:51]} 15. Rxd1 {[%emt 0:00:04]} Rd8 {[%emt 0:00:16]} 16. Rxd8+ {[%emt 0:01:04]} Bxd8 {[%emt 0:00:11]} 17. Bd2 {[%emt 0:25:17]} Bd5 {[%emt 0:24:13]} 18. a4 {[%emt 0:20:52]} bxa4 {[%emt 0:08:12]} 19. Be3 {[%emt 0:11:13]} Be7 {[%emt 0:08:38]} 20. Nd4 {[%emt 0:06:51]} g6 {[%emt 0:07:09] Pariert Nf5.} 21. Ne2 {[%emt 0:11:29]} Bb3 {[%emt 0:12:46]} 22. Bxb3 {[%emt 0:03:16]} axb3 {[%emt 0:01:55]} 23. Nc1 {[%emt 0:02:45] Wehrt Nd3 ab} Kd7 {[%emt 0:03:01]} 24. Bxc5 {[%emt 0:01:09]} Bxc5 {[%emt 0:00:02]} 25. Nxb3 $11 {[%emt 0:00:07][%mdl 4096] Endspiel. KRB-KRN} (25. Rxa6 Rb8 26. Ra4 Rd8) 25... Bb6 {[%emt 0:01:00]} 26. Kf1 {[%emt 0:00:03]} Re8 {[%emt 0:02:59]} 27. f4 {[%emt 0:00:40] [#]} g5 $1 {[%emt 0:02:08]} 28. fxg5 {[%emt 0:00:56]} (28. Ra4 gxf4) 28... Rxe5 {[%emt 0:00:29]} 29. Nd2 $1 {[%emt 0:00:29]} Rxg5 {[%emt 0:01:37]} 30. Rxa6 {[%emt 0:00:22]} Rf5+ {[%emt 0:00:39]} 31. Nf3 {[%emt 0:00:16]} Rb5 {[%emt 0:01:10] Ein interessantes Remis.   Gewichteter Fehlerwert: Weiß=0.04 (makellos) /Schwarz=0.05 (makellos) .  Ungenau:       	Weiß=1     	Schwarz=1     OK:         	Weiß=9     	Schwarz=10    Bester:       	Weiß=1     	---        Stark:        	Weiß=1     	---} 1/2-1/2

[Event "Austrian Bundesliga 2023-24"]
[Site "Austria"]
[Date "2024.03.20"]
[Round "7.4"]
[White "Halvax, Georg"]
[Black "Hess, Max"]
[Result "1/2-1/2"]
[ECO "D38"]
[WhiteElo "2452"]
[BlackElo "2392"]
[Annotator "TA"]
[PlyCount "61"]
[EventDate "2023.10.21"]
[EventType "team-tourn"]
[EventCountry "AUT"]
[SourceTitle "playchess.com"]
[Source "ChessBase"]
[SourceQuality "1"]
[TimeControl "40/5400+30:1800+30"]

{[%evp 9,61,18,30,0,0,0,8,-9,-13,-41,-39,-42,-1,-19,0,0,-17,-4,0,-5,38,19,87,78,72,64,70,70,81,68,63,57,56,72,71,47,48,29,22,0,0,0,0,0,0,3,6,0,0,0,0,0,0,0]} 1. d4 {[%emt 0:00:06]} Nf6 {[%emt 0:00:07]} 2. c4 {[%emt 0:00:08]} e6 {[%emt 0:00:07]} 3. Nf3 {[%emt 0:00:07]} d5 {[%emt 0:00:11]} 4. Nc3 {[%emt 0:00:19]} Bb4 {[%emt 0:00:29]} 5. cxd5 {[%emt 0:03:21]} exd5 {[%emt 0:00:05]} 6. Bf4 {[%emt 0:00:38]} Ne4 {[%emt 0:00:31]} 7. Rc1 {[%emt 0:00:14]} Nc6 {[%emt 0:00:15]} 8. g3 {[%emt 0:01:41]} Bf5 {[%emt 0:00:26]} 9. Qb3 {[%emt 0:02:32]} (9. Qa4 {seems wilder.} a6 10. Ne5 b5 11. Qb3) 9... a5 {[%emt 0:14:11] [#] Strongly threatening ...a4.} 10. a4 {[%emt 0:04:31]} O-O {[%emt 0:17:44]} 11. Bg2 {[%emt 0:00:39]} Ne7 {[%emt 0:05:20]} 12. O-O {[%emt 0:02:44][%cal Of4c7,Bh1f1,Bf1d1,Bd1d5][%mdl 32]} c6 {[%emt 0:00:21]} 13. Ne5 {[%emt 0:04:08]} Ng6 {[%emt 0:05:20]} 14. Nxg6 {[%emt 0:06:24]} Bxg6 {[%emt 0:03:38]} 15. Nxe4 {[%emt 0:05:08]} Bxe4 {[%emt 0:02:49]} (15... dxe4 $11 16. Rfd1 Bf5) 16. Bxe4 $16 {[%emt 0:00:15]} dxe4 {[%emt 0:00:02]} 17. Rfd1 {[%emt 0:00:15]} Rc8 {[%emt 0:04:22]} 18. d5 {[%emt 0:06:03] White is more active.} cxd5 {[%emt 0:00:30]} 19. Rxc8 {[%emt 0:00:28]} Qxc8 {[%emt 0:00:05]} 20. Rxd5 {[%emt 0:01:27]} h6 {[%emt 0:16:37]} 21. Qd1 {[%emt 0:06:34]} Qc6 {[%emt 0:02:52]} 22. b3 {[%emt 0:02:50]} Rc8 {[%emt 0:01:48]} 23. Rd4 {[%emt 0:06:34]} Qe6 {[%emt 0:07:08]} 24. Rd8+ {[%emt 0:15:06] The position is equal.} Rxd8 {[%emt 0:00:08]} 25. Qxd8+ $11 {[%emt 0:00:04][%mdl 4096] Endgame. KQB-KQB} Kh7 {[%emt 0:00:11]} 26. Qd1 {[%emt 0:01:15]} Qc6 {[%emt 0:02:52]} 27. Be3 {[%emt 0:01:16]} b5 {[%emt 0:01:26]} 28. axb5 {[%emt 0:00:48]} Qxb5 {[%emt 0:00:06]} 29. Qd4 {[%emt 0:00:38]} Qc6 {[%emt 0:04:17]} 30. Bd2 {[%emt 0:01:41]} Bxd2 {[%emt 0:01:00]} 31. Qxd2 {[%emt 0:00:08] Weighted Error Value: White=0.07 (flawless) /Black=0.11 (very precise) .  Mistake:       	---       	Black=1      Inaccurate:     	White=1     	Black=2      OK:         	White=8     	Black=10     Best:        	White=3     	Black=2} 1/2-1/2

[Event "Austrian Bundesliga 2023-24"]
[Site "Austria"]
[Date "2024.03.20"]
[Round "7.5"]
[White "Kruckenhauser, Arthur"]
[Black "Kreisl, Robert"]
[Result "1/2-1/2"]
[ECO "B01"]
[WhiteElo "2355"]
[BlackElo "2260"]
[Annotator "TA"]
[PlyCount "86"]
[EventDate "2023.10.21"]
[EventType "team-tourn"]
[EventCountry "AUT"]
[SourceTitle "playchess.com"]
[Source "ChessBase"]
[SourceQuality "1"]
[TimeControl "40/5400+30:1800+30"]

{[%evp 16,86,0,0,56,0,-4,-6,0,-3,0,-37,-23,-29,-15,-39,-31,-54,-43,-54,-43,-81,-89,-82,-50,-58,-19,-16,0,3,4,-19,0,-12,-9,-14,-11,-8,-21,-20,-18,-14,0,0,0,-25,-14,-19,-16,-23,-19,-122,-69,-133,-120,-118,-141,-139,-131,-195,-171,-201,-129,-136,-137,-131,-108,-108,0,-133,0,-110,0]} 1. e4 {[%emt 0:00:05]} d5 {[%emt 0:00:26]} 2. exd5 {[%emt 0:00:11]} Qxd5 {[%emt 0:00:06]} 3. Nc3 {[%emt 0:00:05]} Qa5 {[%emt 0:00:04]} 4. d4 {[%emt 0:02:40]} Nf6 {[%emt 0:00:21]} 5. Nf3 {[%emt 0:08:09]} Bf5 {[%emt 0:01:02]} 6. Ne5 {[%emt 0:03:27]} c6 {[%emt 0:05:25]} 7. Bc4 {[%emt 0:05:51]} e6 {[%emt 0:00:36]} 8. O-O {[%emt 0:02:45]} Nbd7 {[%emt 0:18:06]} 9. Qe2 {[%emt 0:07:37]} Bd6 {[%emt 0:04:28]} (9... Be7 $11) 10. Re1 {[%emt 0:07:00]} (10. g4 $14 Bg6 (10... Nxe5 11. dxe5 Bxg4 12. f3 $16) 11. f4) 10... O-O $11 {[%emt 0:04:15]} 11. Bb3 {[%emt 0:07:48]} Qc7 {[%emt 0:05:23] The position is equal.} 12. h3 {[%emt 0:10:18]} h6 {[%emt 0:09:43]} 13. Nc4 {[%emt 0:08:42]} Bh2+ {[%emt 0:02:54]} 14. Kh1 {[%emt 0:00:28]} Bf4 {[%emt 0:00:26]} 15. Ne3 {[%emt 0:01:04]} Bg6 {[%emt 0:01:07]} 16. g3 {[%emt 0:01:50]} Bh5 {[%emt 0:11:29]} 17. g4 {[%emt 0:04:09]} Bg6 {[%emt 0:00:25]} 18. Ng2 {[%emt 0:05:03]} Bxc1 {[%emt 0:03:01]} 19. Raxc1 {[%emt 0:00:05]} Rfe8 {[%emt 0:01:11]} 20. Rcd1 {[%emt 0:06:19]} e5 {[%emt 0:07:26] [#] White must now prevent ...exd4.} 21. d5 {[%emt 0:02:25]} cxd5 {[%emt 0:00:18]} 22. Nxd5 {[%emt 0:01:36]} Nxd5 {[%emt 0:00:37]} 23. Bxd5 {[%emt 0:00:20]} Nf6 {[%emt 0:01:08]} (23... Qxc2 24. Bxf7+ (24. Bxb7 Rad8 $14) 24... Kxf7 25. Rxd7+ Kg8 26. Qxc2 (26. Rxb7 Qc6 $14) 26... Bxc2 27. Rxb7 $15) (23... Bxc2 $6 24. Rc1 Qa5 25. Bxf7+ (25. Bxb7 Rab8 $11) 25... Kxf7 26. Qxc2 $14 (26. Rxc2 Nf6 $14)) 24. Bb3 {[%emt 0:01:54]} Be4 {[%emt 0:01:18]} 25. Kg1 {[%emt 0:04:04]} Bc6 {[%emt 0:13:05]} 26. Ne3 {[%emt 0:00:52]} Rad8 {[%emt 0:00:13]} 27. Rxd8 {[%emt 0:01:45]} Rxd8 {[%emt 0:00:07]} 28. Rd1 {[%emt 0:00:25]} Rxd1+ {[%emt 0:02:49]} 29. Qxd1 {[%emt 0:00:06]} g6 {[%emt 0:01:31]} 30. Qd3 {[%emt 0:02:32]} Kg7 {[%emt 0:00:10]} 31. c3 {[%emt 0:00:33]} b5 {[%emt 0:02:21]} 32. a3 {[%emt 0:00:48]} a6 {[%emt 0:00:21]} 33. Ba2 {[%emt 0:01:19]} (33. Nd5 $11 Qd7 34. Nb4) 33... Be4 {[%emt 0:01:05]} (33... Bb7 $17 {Strongly threatening ...Qc6.} 34. Qe2 Qc6) 34. Qd2 {[%emt 0:00:14]} (34. Qe2 $15) 34... Bb7 $17 {[%emt 0:00:14] ...Qc6 is the strong threat.} 35. Qd1 {[%emt 0:02:20]} Qc6 {[%emt 0:01:25][%csl Gb7][%cal Rc6h1]} 36. Kh2 {[%emt 0:00:04] [#]} Qe4 $1 {[%emt 0:01:45]} 37. Bb1 {[%emt 0:01:03]} (37. Qg1 $17) 37... Qf4+ $19 {[%emt 0:00:15]} 38. Kg1 {[%emt 0:00:04]} Ne4 {[%emt 0:01:00]} 39. Bxe4 {[%emt 0:01:20]} Qxe4 {[%emt 0:00:05][%csl Gb7][%cal Re4h1]} 40. Kh2 {[%emt 0:00:00]} Qf4+ {[%emt 0:00:00]} 41. Kg1 {[%emt 0:00:18]} Qe4 {[%emt 0:00:29][%csl Gb7][%cal Re4h1]} 42. Kh2 {[%emt 0:00:40]} Qf4+ {[%emt 0:00:20]} 43. Kg1 {[%emt 0:00:20]} Qe4 {[%emt 0:00:05] Weighted Error Value: White=0.21 (precise) /Black=0.21 (precise) .  Mistake:       	White=4     	Black=2      Inaccurate:     	White=3     	Black=3      OK:         	White=10    	Black=14     Best:        	White=1     	Black=1      Strong:       	---       	Black=1} ({Better is} 43... a5 $17 44. b3 Qe4) 1/2-1/2

[Event "Austrian Bundesliga 2023-24"]
[Site "Austria"]
[Date "2024.03.20"]
[Round "7.6"]
[White "Hartl, Daniel"]
[Black "Ciolek, Andreas"]
[Result "1-0"]
[ECO "E06"]
[WhiteElo "2248"]
[BlackElo "2302"]
[Annotator "TA"]
[PlyCount "71"]
[EventDate "2023.10.21"]
[EventType "team-tourn"]
[EventCountry "AUT"]
[SourceTitle "playchess.com"]
[Source "ChessBase"]
[SourceQuality "1"]
[TimeControl "40/5400+30:1800+30"]

{[%evp 12,71,41,30,9,0,12,19,15,0,7,35,20,0,6,0,11,16,14,-45,-36,-50,-12,-10,-3,-70,-59,-58,-10,-71,0,0,-8,-11,0,0,0,0,0,0,0,0,21,10,44,16,12,20,6,22,127,118,110,117,517,516,557,563,611,593,594,587]} 1. d4 {[%emt 0:00:03]} d5 {[%emt 0:00:11][%cal Bd7d5,Bd5c4][%mdl 32]} 2. c4 {[%emt 0:00:05]} e6 {[%emt 0:00:11]} 3. Nf3 {[%emt 0:00:06]} Nf6 {[%emt 0:00:08]} 4. g3 {[%emt 0:00:06]} Be7 {[%emt 0:00:35]} 5. Bg2 {[%emt 0:00:07]} O-O {[%emt 0:00:10]} 6. O-O {[%emt 0:00:05]} dxc4 {[%emt 0:00:09]} 7. Qc2 {[%emt 0:04:24]} b6 {[%emt 0:01:05]} 8. Ne5 {[%emt 0:10:48]} Qxd4 {[%emt 0:00:31]} 9. Bxa8 {[%emt 0:00:41]} Qxe5 {[%emt 0:00:08] The position is equal.} 10. Bf3 {[%emt 0:03:57][%cal Of1d1]} Nd5 {[%emt 0:00:19]} 11. Qxc4 {[%emt 0:06:52]} Ba6 {[%emt 0:02:50]} 12. Qe4 {[%emt 0:01:00]} Qxe4 {[%emt 0:21:57]} 13. Bxe4 {[%emt 0:00:06]} Bxe2 {[%emt 0:04:26]} 14. Re1 {[%emt 0:00:55]} Bc4 {[%emt 0:00:12]} 15. Bxd5 {[%emt 0:10:37]} (15. Nd2 $11 Bb4 16. a3 Bxd2 17. Bxd2) 15... Bxd5 $15 {[%emt 0:00:34]} 16. Nc3 {[%emt 0:00:06]} Bb7 {[%emt 0:19:57]} 17. Bf4 $1 {[%emt 0:00:52]} c5 {[%emt 0:10:35]} 18. Red1 {[%emt 0:00:39]} (18. Rad1 $11) 18... Bf6 {[%emt 0:01:26]} 19. a4 {[%emt 0:09:04]} Bd4 {[%emt 0:05:52]} (19... g5 $15 20. Bxb8 Rxb8) 20. a5 {[%emt 0:03:37]} (20. Bxb8 $11 {remains equal.} Rxb8 21. Nb5 Bxb2 22. Rab1) 20... bxa5 {[%emt 0:01:50]} ({Black should play} 20... e5 $17 21. Be3 Bf3) 21. Rxa5 $11 {[%emt 0:06:23]} Nc6 {[%emt 0:01:28]} 22. Ra4 {[%emt 0:00:31]} e5 {[%emt 0:01:57]} 23. Be3 {[%emt 0:00:08]} f5 {[%emt 0:06:23] Inhibits Ne4.} 24. Nb5 {[%emt 0:09:26]} Rd8 {[%emt 0:02:28] Wards off Nd6} 25. Nxa7 {[%emt 0:14:04]} Nb4 {[%emt 0:02:37]} 26. Nb5 {[%emt 0:02:04]} Bf3 {[%emt 0:01:49] This pair of bishops is nice.} 27. Rd2 {[%emt 0:01:22]} Nd5 {[%emt 0:02:19]} 28. Bxd4 {[%emt 0:02:55]} exd4 {[%emt 0:03:21]} 29. Ra3 {[%emt 0:00:31]} Bh5 {[%emt 0:00:43]} 30. f3 {[%emt 0:05:13]} Be8 {[%emt 0:00:41] [#]} (30... f4 $11 {keeps the balance.}) 31. Ra5 $1 $16 {[%emt 0:00:38] Na7 would now be deadly.} Ne3 {[%emt 0:02:24]} 32. Na3 {[%emt 0:00:09] Dodges Nc4} c4 {[%emt 0:01:51][%mdl 8192] This move loses the game for Black.} (32... Rc8 $16) 33. Re5 $18 {[%emt 0:00:19] White is clearly winning.} f4 {[%emt 0:05:09]} 34. gxf4 {[%emt 0:01:00]} c3 {[%emt 0:00:34]} 35. bxc3 {[%emt 0:00:33]} Ra8 {[%emt 0:00:31]} 36. Rxd4 {[%emt 0:01:40] Weighted Error Value: White=0.12 (very precise) /Black=0.40.  Loses game:     	---       	Black=1      Mistake:       	White=3     	Black=3      Inaccurate:     	White=1     	Black=2      OK:         	White=11    	Black=8      Best:        	White=1     	Black=2      Strong:       	White=2     	---} 1-0

[Event "Austrian Bundesliga 2023-24"]
[Site "Austria"]
[Date "2024.03.20"]
[Round "7.7"]
[White "Donchenko, Alexander"]
[Black "Georgiadis, Nico"]
[Result "1-0"]
[ECO "A20"]
[WhiteElo "2631"]
[BlackElo "2537"]
[Annotator "TA"]
[PlyCount "101"]
[EventDate "2023.10.21"]
[EventType "team-tourn"]
[EventCountry "AUT"]
[SourceTitle "playchess.com"]
[Source "ChessBase"]
[SourceQuality "1"]
[TimeControl "40/5400+30:1800+30"]

{[%evp 9,101,13,5,0,0,0,2,-16,37,37,44,36,47,45,45,46,46,45,43,39,44,47,37,40,45,34,39,37,56,52,59,51,103,108,99,87,104,65,121,139,119,122,133,96,123,112,118,120,163,158,220,234,397,389,385,348,342,0,358,0,345,339,345,295,293,295,360,322,322,323,311,312,297,297,309,298,298,298,499,496,539,545,590,587,794,825,697,521,836,815,716,685,1031,1002]} 1. c4 {[%emt 0:00:04]} e5 {[%emt 0:00:06]} 2. g3 {[%emt 0:00:16]} c6 {[%emt 0:00:43]} 3. d4 {[%emt 0:00:21]} e4 {[%emt 0:00:05]} 4. d5 {[%emt 0:00:20]} Bb4+ {[%emt 0:00:08]} 5. Bd2 {[%emt 0:00:27]} Qe7 {[%emt 0:00:12]} 6. Bxb4 {[%emt 0:00:49]} Qxb4+ {[%emt 0:00:07]} 7. Nc3 {[%emt 0:00:08][%cal Bb1c3,Bc3e4,Be4d2][%mdl 32]} Nf6 {[%emt 0:04:51]} 8. Qd2 {[%emt 0:00:54][%cal Oc3e4] The position is equal.} O-O {[%emt 0:16:47] [#]} ({Better is} 8... Qxc4 $11 9. e3 Qc5) 9. Nxe4 $1 $14 {[%emt 0:04:16]} Qxd2+ {[%emt 0:00:07]} 10. Nxd2 {[%emt 0:00:06]} cxd5 {[%emt 0:00:04]} 11. cxd5 {[%emt 0:16:54]} Nxd5 {[%emt 0:01:15]} 12. Rc1 {[%emt 0:05:46]} Nf6 {[%emt 0:11:13]} 13. Bg2 {[%emt 0:05:52]} d5 {[%emt 0:00:38]} 14. Ngf3 {[%emt 0:00:21]} Nc6 {[%emt 0:00:23]} 15. O-O {[%emt 0:02:35]} Re8 {[%emt 0:13:54]} 16. e3 {[%emt 0:01:16]} Bf5 {[%emt 0:07:09]} 17. a3 {[%emt 0:12:36]} Rac8 {[%emt 0:03:27]} 18. Nb3 {[%emt 0:02:06]} Be4 {[%emt 0:01:48]} 19. Rfd1 {[%emt 0:04:57]} h6 {[%emt 0:02:21]} 20. Nc5 {[%emt 0:09:00]} b6 {[%emt 0:13:17] Black is on the road to losing.} ({Black should play} 20... Kf8 $14) 21. Nxe4 $16 {[%emt 0:00:42]} dxe4 {[%emt 0:01:49]} 22. Nd2 {[%emt 0:00:13][%cal Bf3d2,Bd2c4,Bc4d6][%mdl 32]} g5 {[%emt 0:11:22]} 23. Nc4 {[%emt 0:13:18] And now Nd6 would win.} Na5 {[%emt 0:03:15]} (23... Ne5 $14 24. Nd6 Rxc1 25. Rxc1 Rd8 26. Nxe4 Kg7) 24. Nd6 {[%emt 0:00:22][%csl LRc8,LRe8]} Rxc1 {[%emt 0:00:13]} 25. Rxc1 {[%emt 0:00:02]} Re6 {[%emt 0:00:15]} 26. Nf5 {[%emt 0:05:04][%cal Oc1c7] White is more active.} Re5 {[%emt 0:01:02]} 27. Rc8+ {[%emt 0:02:50]} (27. Nxh6+ Kg7 28. b4 Kxh6 $11) 27... Kh7 {[%emt 0:00:05]} 28. Nd6 $36 {[%emt 0:00:14][%mdl 2048] White has strong initiative.} Nb3 {[%emt 0:05:11] Inhibits b4.} 29. Rc7 {[%emt 0:01:06]} Nd2 {[%emt 0:00:19]} (29... Kg6 $16 30. h3 (30. Rxf7 $2 Rd5 $19) (30. Rxa7 Nd2 $18) 30... h5 31. Rxa7 (31. Nxf7 Rd5 $16) 31... Nd2) 30. Nxf7 $18 {[%emt 0:01:05]} (30. Rxa7 $6 Rc5 31. h3 (31. Rxf7+ Kg6 $11) 31... h5 $16) 30... Rd5 {[%emt 0:01:04]} (30... Rc5 31. Nxg5+ (31. Rxa7 $2 {loses.} Rc1+ $19) 31... Kg6) 31. Nxg5+ {[%emt 0:00:44]} ({Weaker is} 31. Rxa7 g4 $16) 31... Kg8 {[%emt 0:00:57]} 32. Rc8+ {[%emt 0:03:08]} Kg7 {[%emt 0:00:16]} 33. Rc7+ {[%emt 0:00:26]} Kg8 $1 {[%emt 0:00:06]} 34. Rc8+ {[%emt 0:00:05]} Kg7 {[%emt 0:00:03]} 35. Ne6+ {[%emt 0:00:05]} Kf7 {[%emt 0:00:58]} 36. Nd4 {[%emt 0:00:28]} Rc5 {[%emt 0:00:57]} 37. Bh3 {[%emt 0:02:03]} h5 {[%emt 0:00:47]} 38. b4 {[%emt 0:03:55]} Rxc8 {[%emt 0:00:05]} 39. Bxc8 {[%emt 0:00:02][%mdl 4096] Endgame. KBN-KNN} a5 {[%emt 0:00:41]} 40. bxa5 {[%emt 0:00:00]} bxa5 {[%emt 0:00:00]} 41. a4 {[%emt 0:03:05]} Nb1 {[%emt 0:04:29]} 42. Bb7 {[%emt 0:06:09]} Nc3 {[%emt 0:04:39]} 43. Bc6 {[%emt 0:00:23] Threatens to win with Nb3.} Ke7 $2 {[%emt 0:00:04]} (43... Ng4 {is a better defense.} 44. Nb3 Ne5) 44. Nb3 {[%emt 0:00:37] White is clearly winning.} Kd6 {[%emt 0:00:32]} 45. Nxa5 {[%emt 0:00:10]} Kc5 {[%emt 0:00:24] [#]} 46. Bb5 $1 {[%emt 0:00:09]} Nxb5 {[%emt 0:00:10]} (46... Kd6 47. Nb3) 47. axb5 {[%emt 0:00:06]} Kxb5 {[%emt 0:00:06]} 48. Nb3 {[%emt 0:00:06]} Kc4 {[%emt 0:00:11]} 49. Nd4 {[%emt 0:00:22]} Kd5 {[%emt 0:06:57]} 50. Kg2 {[%emt 0:00:43]} Ke5 {[%emt 0:00:30]} 51. Kh3 {[%emt 0:01:23] Weighted Error Value: White=0.28 (precise) /Black=0.28 (precise) .  Mistake:       	---       	Black=6      Inaccurate:     	White=1     	Black=2      OK:         	White=19    	Black=10     Best:        	White=3     	Black=5      Strong:       	---       	Black=1      Brilliant:      	White=1     	---} 1-0